bitfinex/quotes_ETHUSD_20240707
["timestamp","ask_amount","ask_price","bid_price","bid_amount"]
[1720315308013,1.68438627,3052.4,3052.0,3.27653]
[1720315308014,1.13438627,3052.3,3052.0,3.27653]
[1720315308213,1.13438627,3052.2,3052.0,3.27653]
[1720315308411,0.55,3052.4,3052.0,3.27653]
[1720315308745,12.24407749,3052.7,3052.0,3.27653]
[1720315308746,1.13432711,3052.3,3052.0,3.27653]
[1720315308952,1.13432711,3052.2,3052.0,3.27653]
[1720315309136,1.13432711,3052.5,3052.0,3.27653]
[1720315309443,1.13431882,3052.4,3052.2,5.55756]
[1720315309648,6.62,3052.7,3052.3,3.27621]
[1720315309954,1.13426005,3052.6,3052.3,3.27621]
[1720315310113,1.13426005,3052.5,3052.3,3.27621]
[1720315310310,1.13426005,3052.4,3052.2,3.27626]
[1720315310521,1.13429999,3052.3,3052.2,3.27626]
[1720315311010,1.13431419,3052.6,3052.0,3.27651]
[1720315311243,2.82536287,3052.5,3052.0,3.27651]
[1720315311447,1.1343237,3052.4,3052.0,3.27651]
[1720315312745,1.1343237,3052.4,3052.1,3.27641]
[1720315314268,1.13436132,3052.3,3052.1,3.27641]
[1720315314457,0.55,3052.5,3052.1,3.27641]
[1720315314655,2.56352058,3052.4,3052.2,0.08400857]
[1720315314848,1.13430114,3052.3,3052.1,3.27641]
[1720315315162,1.91270639,3052.5,3052.2,0.08400857]
[1720315315357,2.56352357,3052.4,3052.1,3.27641]
[1720315315554,2.56352357,3052.3,3052.1,3.27641]
[1720315315872,1.13433596,3052.2,3052.1,3.27641]
[1720315316363,1.13433596,3052.2,3052.1,3.36043498]
[1720315316568,2.56360012,3052.2,3052.1,3.36043498]
[1720315317565,1.42923532,3052.2,3052.1,3.36043498]
[1720315317774,1.13431404,3052.2,3052.1,3.36043498]
[1720315317978,1.42923532,3052.2,3052.1,3.36043498]
[1720315318268,2.56355277,3052.2,3052.1,3.36043498]
[1720315319675,1.36270639,3052.5,3052.3,3.27621]
[1720315319862,2.56330618,3052.4,3052.3,6.55242]
[1720315320044,1.42910114,3052.4,3052.3,6.55242]
[1720315320242,1.36270639,3052.6,3052.3,3.27621]
[1720315320469,2.56326203,3052.5,3052.4,3.27611]
[1720315320673,1.36270639,3052.6,3052.5,3.276]
[1720315320973,6.62,3052.7,3052.6,3.27589]
[1720315321169,9.18309848,3052.7,3052.6,3.27589]
[1720315322277,9.18309848,3052.7,3052.1,5.54128]
[1720315322278,9.18310095,3052.7,3052.3,3.27617]
[1720315322479,2.56310095,3052.6,3052.5,3.27599]
[1720315322637,3.92580734,3052.6,3052.5,3.27599]
[1720315322983,6.62,3052.7,3052.5,3.27599]
[1720315323292,6.62,3052.7,3052.1,6.55272]
[1720315323293,2.56330206,3052.6,3052.1,6.55272]
[1720315323438,3.92828179,3052.5,3052.2,3.2763]
[1720315323639,3.92828179,3052.4,3052.2,3.2763]
[1720315323852,2.56330206,3052.3,3052.2,3.2763]
[1720315325191,2.95613024,3052.3,3052.0,3.27653]
[1720315325379,3.92828179,3052.2,3052.0,3.27653]
[1720315325588,2.56330206,3052.1,3052.0,3.27653]
[1720315326154,2.56373636,3052.1,3051.8,3.2767]
[1720315326370,2.56373636,3052.0,3051.8,3.2767]
[1720315326600,1.13439662,3051.9,3051.8,3.2767]
[1720315326781,1.13439662,3051.9,3051.6,3.27694]
[1720315326984,3.65975382,3052.2,3051.6,3.27694]
[1720315326985,2.56385513,3051.8,3051.6,3.27694]
[1720315327280,2.56385513,3051.7,3051.6,3.27694]
[1720315327967,6.85760895,3051.7,3051.0,3.27754]
[1720315328286,2.56385513,3051.6,3051.5,0.00927216]
[1720315328492,2.56385513,3051.6,3051.0,3.27754]
[1720315328799,2.56400775,3051.5,3051.2,3.27739]
[1720315329108,1.13439662,3051.4,3051.3,0.01112756]
[1720315329276,0.55,3051.7,3051.2,3.27739]
[1720315329485,2.56425935,3051.6,3051.3,0.00927228]
[1720315329687,1.78738032,3051.7,3051.3,0.00927228]
[1720315329888,2.56425856,3051.6,3051.2,3.27739]
[1720315330091,1.13462775,3051.5,3051.2,3.27739]
[1720315330405,1.13462775,3051.4,3051.2,3.27739]
[1720315330610,3.14989376,3051.7,3051.2,3.27739]
[1720315330771,3.1480342,3051.6,3051.3,0.08417507]
[1720315330971,2.295,3051.4,3051.0,3.27754]
[1720315331210,7.75462815,3051.3,3051.1,0.08420792]
[1720315331407,1.13470102,3051.2,3051.1,0.08420792]
[1720315332474,6.62,3051.3,3051.1,0.08420792]
[1720315332670,1.13473684,3051.2,3051.1,0.08420792]
[1720315332866,6.62,3051.3,3051.1,0.08420792]
[1720315334815,7.5115,3051.3,3051.1,0.08420792]
[1720315334999,1.1347401,3051.2,3051.1,0.08420792]
[1720315335186,6.62,3051.3,3050.9,3.27771]
[1720315335390,6.62,3051.3,3051.0,0.08458543]
[1720315336496,6.62,3051.3,3050.8,3.27779]
[1720315336803,6.62,3051.3,3050.9,0.15690694]
[1720315336804,2.02627461,3051.2,3050.9,0.15690694]
[1720315337020,2.295,3051.0,3050.9,0.15690694]
[1720315337317,4.79086583,3051.0,3050.2,3.2784]
[1720315337629,1.68479045,3050.9,3050.3,3.36026937]
[1720315337792,1.13479045,3050.8,3050.3,3.36026937]
[1720315337986,1.13479045,3050.8,3050.4,3.27825]
[1720315338188,0.55,3050.9,3050.4,3.27825]
[1720315338899,0.96372378,3050.9,3050.4,3.27825]
[1720315340327,0.96372378,3050.9,3050.2,6.55679]
[1720315340530,0.96372378,3050.9,3050.3,3.27835]
[1720315340735,0.96372378,3050.9,3050.3,3.35783342]
[1720315342119,0.96372378,3050.9,3050.4,3.2782]
[1720315343296,0.31898103,3050.8,3050.2,3.27839]
[1720315343618,0.31898103,3050.8,3050.3,3.35783342]
[1720315344043,0.31898103,3050.8,3050.4,3.2782]
[1720315344198,0.55,3050.9,3050.4,3.2782]
[1720315344700,10.35699479,3051.3,3050.5,3.27806]
[1720315345077,6.62,3051.3,3051.0,3.2776]
[1720315345212,6.62,3051.3,3050.9,3.2777]
[1720315345543,7.634,3051.3,3050.7,3.27786]
[1720315345701,1.13486446,3051.2,3050.6,3.27795]
[1720315345904,9.929,3051.3,3050.7,0.07938964]
[1720315346103,1.13487502,3051.2,3050.6,3.27795]
[1720315346343,9.929,3051.3,3050.7,0.07938964]
[1720315346635,2.12779817,3051.2,3050.6,3.27795]
[1720315346800,0.9929,3051.2,3050.6,3.27795]
[1720315347002,0.9929,3051.2,3050.7,0.07938964]
[1720315347452,0.9929,3051.2,3050.7,3.35731964]
[1720315349210,1.13488434,3051.1,3050.7,3.35731964]
[1720315349425,0.9929,3051.2,3050.7,3.35731964]
[1720315350149,2.22707888,3051.1,3050.7,0.07938964]
[1720315350350,1.09219,3051.1,3050.6,3.27803]
[1720315350559,1.09219,3051.1,3050.7,0.07936161]
[1720315351818,1.13492537,3051.0,3050.7,0.07936161]
[1720315352067,1.35763691,3050.9,3050.7,0.07936161]
[1720315352277,1.57655691,3050.9,3050.7,0.07936161]
[1720315352571,1.09219,3051.1,3050.7,0.07936161]
[1720315352863,1.13490637,3051.0,3050.7,0.07936161]
[1720315353059,2.48944169,3050.9,3050.7,0.07936161]
[1720315353371,1.13495183,3050.8,3050.2,3.27843]
[1720315353652,1.13495183,3050.7,3050.2,3.27843]
[1720315353861,6.62,3050.6,3050.2,3.27843]
[1720315354011,1.13495183,3050.5,3050.2,3.27843]
[1720315354415,2.45901399,3050.5,3050.2,3.27843]
[1720315354625,6.62,3050.6,3050.1,3.27857]
[1720315354839,2.27010648,3050.5,3049.9,5.6495]
[1720315355047,4.12635306,3050.5,3049.9,3.2787]
[1720315355258,1.13505354,3050.4,3049.9,3.2787]
[1720315356277,1.13505354,3050.4,3049.9,6.55742]
[1720315356436,1.13505354,3050.4,3050.0,3.27868]
[1720315356637,1.13505354,3050.4,3049.9,3.2787]
[1720315356936,2.20968885,3050.4,3049.9,3.2787]
[1720315357272,1.13505354,3050.3,3049.9,3.2787]
[1720315357847,1.13512041,3050.2,3049.9,3.2787]
[1720315358055,1.13512041,3050.1,3049.9,3.2787]
[1720315358247,1.07463531,3050.4,3049.9,3.2787]
[1720315358448,1.13514466,3050.3,3049.9,3.2787]
[1720315358749,1.13514466,3050.2,3050.0,3.27868]
[1720315358927,1.13514466,3050.3,3050.1,3.27848]
[1720315359133,14.05,3050.6,3050.1,3.27848]
[1720315359134,14.05,3050.6,3050.3,3.27833]
[1720315359430,1.13500771,3050.5,3050.3,3.27825]
[1720315359731,1.13500771,3050.4,3050.3,3.27825]
[1720315360736,1.13500771,3050.5,3050.3,3.12825]
[1720315361081,14.05,3050.6,3050.1,3.2785]
[1720315361377,2.54005374,3050.5,3050.1,3.2785]
[1720315361545,1.13505374,3050.4,3050.1,3.2785]
[1720315362250,1.13505374,3050.4,3049.9,3.27876]
[1720315362793,1.13505374,3050.4,3049.8,3.2789]
[1720315363097,0.55,3050.3,3049.5,3.27922]
[1720315363295,1.13505374,3050.2,3049.6,3.27911]
[1720315363458,0.55,3050.1,3049.6,3.27911]
[1720315363658,1.13505374,3050.0,3049.6,3.27911]
[1720315364189,1.13523974,3049.9,3049.6,3.27911]
[1720315364395,1.13523974,3049.8,3049.6,3.27911]
[1720315364693,0.16852397,3049.9,3049.6,3.27911]
[1720315364996,1.13527196,3049.8,3049.6,3.27911]
[1720315365157,0.55,3050.1,3049.6,3.27911]
[1720315365493,1.13525239,3050.0,3049.6,3.27911]
[1720315365689,1.13525239,3049.9,3049.6,3.27911]
[1720315365899,1.13525239,3050.1,3049.6,3.27911]
[1720315366056,1.85377763,3050.0,3049.6,3.27911]
[1720315366258,1.13525239,3049.9,3049.6,3.27911]
[1720315366459,1.13525239,3049.8,3049.6,3.27911]
[1720315366658,0.71852524,3050.0,3049.7,0.07972697]
[1720315366884,1.13526447,3049.9,3049.7,0.07972697]
[1720315367193,1.13526447,3049.8,3049.6,3.27911]
[1720315367393,0.41487897,3049.9,3049.6,3.27911]
[1720315367557,1.13528032,3049.8,3049.6,3.27911]
[1720315367753,0.41487897,3049.9,3049.6,3.27911]
[1720315367957,1.13526605,3049.8,3049.6,3.27911]
[1720315368266,0.41487897,3049.9,3049.6,3.27911]
[1720315368473,7.75526624,3049.8,3049.6,3.27911]
[1720315368669,1.13526624,3049.7,3049.6,3.27911]
[1720315368885,6.62,3049.8,3049.6,3.27911]
[1720315369577,1.13529782,3049.7,3049.6,3.27911]
[1720315370215,6.62,3049.8,3049.6,3.27911]
[1720315373322,6.62,3049.8,3049.4,3.27925]
[1720315373491,7.3784879,3049.8,3049.5,3.27921]
[1720315373922,7.3784879,3049.8,3049.6,0.07983228]
[1720315375386,3.43031033,3049.7,3049.6,0.07983228]
[1720315375641,3.43031033,3049.7,3049.3,3.27942]
[1720315375789,0.959,3049.4,3049.3,3.27942]
[1720315376191,0.959,3049.4,3049.3,3.35930161]
[1720315377493,0.959,3049.4,3049.3,0.07988161]
[1720315377933,1.08087982,3049.6,3048.8,5.75343]
[1720315378224,1.68539604,3049.5,3048.8,5.75343]
[1720315378421,1.41202363,3049.4,3049.0,3.27968]
[1720315378626,0.27662759,3049.4,3049.0,3.27968]
[1720315378951,0.27662759,3049.4,3049.1,0.08003141]
[1720315379502,0.27662759,3049.4,3049.1,3.35967141]
[1720315380192,1.13545091,3049.3,3049.1,3.35967141]
[1720315380418,0.27662759,3049.4,3049.1,3.35967141]
[1720315380608,1.13546739,3049.3,3049.1,3.35967141]
[1720315380804,0.27662759,3049.4,3049.1,3.35967141]
[1720315381127,1.13544985,3049.3,3049.1,3.35967141]
[1720315381344,0.27662759,3049.4,3049.1,3.35967141]
[1720315381632,6.62,3049.8,3049.5,3.27916]
[1720315381806,1.13534046,3049.7,3049.5,3.27916]
[1720315382006,6.62,3049.8,3049.6,3.35910129]
[1720315382205,6.62,3049.8,3049.6,3.27911]
[1720315382206,1.13527968,3049.7,3049.6,3.27911]
[1720315382822,1.13528561,3049.7,3049.6,3.27911]
[1720315383025,2.46081358,3049.7,3049.6,0.07999129]
[1720315383232,3.89141228,3049.7,3049.6,0.07999129]
[1720315383449,3.89141228,3049.7,3049.1,3.2796]
[1720315383737,4.20832205,3049.6,3049.2,3.27947]
[1720315384035,1.13528561,3049.5,3049.3,3.27943]
[1720315384237,1.13528561,3049.5,3049.3,3.35947995]
[1720315384405,0.06891351,3049.4,3049.3,3.35947995]
[1720315384604,1.20419912,3049.4,3049.3,3.35947995]
[1720315385817,1.20419912,3049.4,3049.3,9.11241995]
[1720315386132,0.06891351,3049.4,3049.3,9.11241995]
[1720315386327,0.06891351,3049.4,3049.3,9.03237]
[1720315386844,1.20423575,3049.4,3049.3,3.35950099]
[1720315387543,1.20428262,3049.4,3049.3,3.35950099]
[1720315388240,1.20428262,3049.4,3049.3,3.27943]
[1720315388432,1.20428262,3049.4,3049.3,3.35950567]
[1720315389211,1.20429357,3049.4,3049.3,3.35950567]
[1720315389653,0.06891351,3049.4,3049.3,6.63894567]
[1720315389946,0.06891351,3049.4,3049.3,9.7689992]
[1720315390945,0.06891351,3049.4,3049.3,13.0484392]
[1720315393257,0.06891351,3049.4,3049.3,16.3278792]
[1720315394723,0.06891351,3049.4,3049.3,19.3278792]
[1720315405666,0.06891351,3049.4,3049.3,12.37798567]
[1720315413061,0.06891351,3049.4,3049.3,9.91838567]
[1720315413385,0.06891351,3049.4,3049.3,12.39498567]
[1720315417066,0.06891351,3049.4,3049.3,15.67442567]
[1720315421766,8.79218865,3050.6,3050.5,6.5563]
[1720315422113,8.79218865,3050.6,3050.5,9.83445]
[1720315422114,1.1349632,3050.6,3050.5,9.83445]
[1720315422280,19.71,3051.1,3051.0,6.55522]
[1720315422481,20.8446836,3051.1,3051.0,6.55522]
[1720315422715,20.8446836,3051.1,3051.0,6.63468193]
[1720315423276,23.3201836,3051.1,3051.0,0.07946193]
[1720315423477,23.3201836,3051.1,3050.9,3.2777]
[1720315423789,4.52160196,3051.0,3050.9,3.2777]
[1720315424377,3.38691836,3051.0,3050.9,3.2777]
[1720315424678,4.48670441,3051.0,3050.9,3.35710123]
[1720315425008,4.48670441,3051.0,3050.9,3.2777]
[1720315425210,4.48670441,3051.0,3050.7,3.27791]
[1720315425393,0.959,3050.8,3050.7,3.27791]
[1720315426010,2.09382344,3050.8,3050.7,3.27791]
[1720315426214,0.959,3050.8,3050.7,3.27791]
[1720315427992,0.959,3050.8,3050.6,3.27804]
[1720315428392,1.13483433,3050.7,3050.6,3.27804]
[1720315428629,3.71891776,3050.7,3050.6,3.27804]
[1720315428791,2.3747,3050.6,3049.7,3.27898]
[1720315428979,3.3337,3049.8,3049.6,3.27911]
[1720315429298,2.70807,3049.8,3049.1,2.3267]
[1720315429484,1.36270791,3050.2,3049.8,3.27883]
[1720315429485,2.3747,3050.1,3049.8,3.27883]
[1720315429813,0.959,3049.9,3049.8,3.27883]
[1720315430024,2.09419831,3049.9,3049.8,3.27883]
[1720315430704,0.959,3049.9,3049.8,3.27883]
[1720315431097,2.09421188,3049.9,3049.8,3.27883]
[1720315431307,2.54110307,3049.9,3049.8,3.27883]
[1720315432605,1.40589119,3049.9,3049.8,3.27883]
[1720315434319,3.73740791,3050.1,3049.7,0.0655765]
[1720315434488,3.73740791,3050.1,3049.7,6.55802]
[1720315434489,0.959,3049.8,3049.7,6.55802]
[1720315436289,0.959,3049.8,3049.7,6.62974023]
[1720315438433,0.959,3049.8,3049.7,3.35073023]
[1720315438600,0.959,3049.8,3049.7,0.07172023]
[1720315438919,1.19117079,3049.8,3049.5,3.2792]
[1720315439120,3.50998166,3049.7,3049.3,3.27939]
[1720315439321,0.959,3049.4,3049.3,3.27939]
[1720315440232,0.959,3049.4,3049.1,3.27961]
[1720315440233,4.69640791,3049.4,3049.1,3.27961]
[1720315440440,1.13547923,3049.3,3049.1,3.27961]
[1720315440727,0.959,3049.2,3049.1,3.27961]
[1720315441922,6.62,3049.3,3049.2,3.27954]
[1720315442130,7.579,3049.3,3049.2,3.27954]
[1720315444230,7.579,3049.3,3048.5,3.2802]
[1720315444231,10.7116,3049.3,3048.5,3.2802]
[1720315444525,1.13548111,3049.2,3048.7,3.28006]
[1720315444832,0.959,3048.9,3048.8,3.2799]
[1720315445133,6.62,3049.3,3049.2,3.27954]
[1720315445351,9.46743159,3049.3,3049.2,3.27954]
[1720315445737,8.50843159,3049.3,3049.2,3.3468243]
[1720315445940,8.50843159,3049.3,3049.2,3.27954]
[1720315446455,8.50843159,3049.3,3049.0,3.27974]
[1720315446640,8.50843159,3049.3,3049.2,3.27954]
[1720315446949,8.50843159,3049.3,3049.0,3.27974]
[1720315447149,0.85084316,3049.2,3049.0,3.27974]
[1720315447462,6.62,3049.3,3049.0,3.27974]
[1720315447754,6.62,3049.3,3049.1,0.06730075]
[1720315448143,6.62,3049.3,3049.0,3.27974]
[1720315448518,6.62,3049.3,3049.1,0.06730075]
[1720315448954,6.62,3049.3,3049.0,3.27974]
[1720315449154,0.662,3049.2,3049.0,3.27974]
[1720315449318,0.662,3049.2,3049.1,0.06730075]
[1720315449957,0.662,3049.2,3048.9,3.27985]
[1720315450330,0.662,3049.2,3049.0,0.0673172]
[1720315450827,0.662,3049.2,3048.7,3.28007]
[1720315451055,0.7282,3049.1,3048.7,3.28007]
[1720315451265,0.7282,3049.1,3048.8,0.06735009]
[1720315452022,3.1516,3049.1,3048.8,0.06735009]
[1720315453024,2.4234,3049.0,3048.8,0.06735009]
[1720315453220,2.4234,3049.0,3047.8,3.3929479]
[1720315453221,2.4234,3049.0,3048.4,3.28034]
[1720315453450,0.54536,3048.9,3048.5,3.28022]
[1720315453625,0.54536,3048.9,3048.5,3.34761945]
[1720315457050,5.58216,3048.7,3048.5,0.06739945]
[1720315457225,7.75584339,3048.6,3048.5,0.06739945]
[1720315457425,9.93928373,3048.6,3047.8,0.1119079]
[1720315457625,1.13584339,3048.5,3047.8,0.1119079]
[1720315457860,0.55,3048.4,3047.8,0.1119079]
[1720315458248,0.55,3048.5,3047.8,0.1119079]
[1720315458646,0.55,3048.5,3047.8,3.3929179]
[1720315458863,0.88034403,3048.4,3047.8,3.3929179]
[1720315459025,2.4464,3048.3,3047.9,0.06566452]
[1720315459233,4.7484,3048.3,3047.9,0.06566452]
[1720315459531,2.302,3048.3,3047.9,3.28085]
[1720315459729,2.302,3048.3,3048.1,3.28072]
[1720315459928,6.62,3048.6,3048.3,3.28041]
[1720315460161,6.62,3048.6,3048.4,3.28038]
[1720315460467,6.62,3048.6,3048.4,3.34596224]
[1720315460874,6.62,3048.6,3048.5,6.5606]
[1720315461023,6.62,3048.6,3048.5,6.62616578]
[1720315463629,6.62,3048.6,3048.5,0.06556578]
[1720315463859,6.62,3048.6,3048.5,0.06338026]
[1720315464286,6.62,3048.6,3048.4,3.2804]
[1720315464287,7.75576277,3048.6,3048.4,3.2804]
[1720315464479,6.62,3048.6,3048.5,0.06338259]
[1720315464678,7.75575392,3048.6,3048.5,0.06338259]
[1720315464879,8.53133204,3048.6,3048.5,0.06338259]
[1720315465069,7.39557539,3048.6,3048.5,0.06338259]
[1720315466261,8.53130503,3048.6,3048.5,0.06338259]
[1720315466462,7.39557539,3048.6,3048.5,0.06338259]
[1720315466696,10.97767556,3048.6,3048.5,0.06338259]
[1720315466998,10.97767556,3048.6,3047.8,0.1119079]
[1720315466999,8.53127556,3048.6,3048.4,3.28038]
[1720315467291,7.39557539,3048.6,3048.5,0.06342459]
[1720315467461,8.53131416,3048.6,3048.5,0.06342459]
[1720315468085,8.53131011,3048.6,3048.5,0.06342459]
[1720315468290,8.53131021,3048.6,3048.5,0.06342459]
[1720315470219,10.83331021,3048.6,3048.1,3.28063]
[1720315470373,8.922,3048.6,3048.5,0.06342459]
[1720315470571,10.05784458,3048.6,3048.1,3.28063]
[1720315470888,1.13584458,3048.5,3048.2,0.06347395]
[1720315471093,2.4423,3048.4,3048.2,0.06347395]
[1720315471308,0.55,3048.3,3047.8,0.1119079]
[1720315471477,2.60123,3048.2,3047.8,0.1119079]
[1720315471680,1.13596282,3048.1,3047.8,0.1119079]
[1720315472007,1.13596282,3048.0,3047.8,0.1119079]
[1720315472165,6.62,3047.9,3047.8,0.1119079]
[1720315472366,7.75596282,3047.9,3047.8,3.3929579]
[1720315472687,6.62,3047.9,3047.8,6.6740079]
[1720315472866,7.43,3048.7,3047.8,0.78587061]
[1720315473067,2.302,3048.5,3047.9,3.28086]
[1720315473273,1.13581514,3048.4,3048.1,3.28064]
[1720315473574,1.13581514,3048.4,3048.2,3.28062]
[1720315473774,1.13581514,3048.5,3048.2,3.28062]
[1720315473969,1.13581514,3048.4,3048.3,3.28051]
[1720315474176,6.62,3048.6,3048.3,3.28051]
[1720315474504,1.13573994,3048.5,3048.2,3.2806]
[1720315474712,1.13573994,3048.4,3048.2,3.2806]
[1720315475024,1.13573994,3048.3,3048.2,3.2806]
[1720315475170,8.025,3048.6,3048.2,3.2806]
[1720315475171,1.13573994,3048.5,3048.2,3.2806]
[1720315475369,5.88003994,3048.5,3048.0,3.28082]
[1720315475588,2.52624393,3048.4,3047.8,0.1119079]
[1720315475788,1.13573994,3048.3,3047.8,0.1119079]
[1720315477414,2.4423,3048.0,3046.9,3.28193]
[1720315477568,2.4423,3048.0,3046.0,5.5768]
[1720315477569,7.90651014,3047.9,3046.7,3.28218]
[1720315477774,7.90651014,3047.9,3046.0,2.2939]
[1720315477775,1.13606635,3047.8,3047.7,3.28116]
[1720315478097,6.62,3047.9,3047.5,3.28133]
[1720315478292,6.62,3047.9,3047.8,6.5621]
[1720315478493,6.62,3047.9,3047.8,3.28105]
[1720315478809,6.62,3047.9,3047.8,3.33365811]
[1720315480476,7.75590435,3047.9,3047.8,3.33365811]
[1720315480677,6.62,3047.9,3047.8,3.33365811]
[1720315480900,7.75591392,3047.9,3047.8,3.33365811]
[1720315481071,6.62,3047.9,3047.8,3.33365811]
[1720315481272,6.62,3047.9,3047.8,0.05260811]
[1720315481477,8.4179163,3047.9,3046.8,5.2939]
[1720315481677,3.5782163,3047.8,3047.4,3.2814]
[1720315481980,3.5782163,3047.8,3047.5,0.0526575]
[1720315481981,1.1359163,3047.7,3047.5,0.0526575]
[1720315482176,0.35782163,3047.6,3047.5,0.0526575]
[1720315482416,1.49373793,3047.6,3047.3,3.28152]
[1720315482618,1.49373793,3047.6,3046.4,5.57642]
[1720315482619,2.65982163,3047.6,3047.5,0.0526575]
[1720315482935,3.79596133,3047.6,3047.5,0.0526575]
[1720315483121,3.79596133,3047.6,3047.1,3.28173]
[1720315483277,1.51573583,3047.5,3047.2,0.05276525]
[1720315483470,1.1361397,3047.4,3047.2,0.05276525]
[1720315483674,0.37959613,3047.5,3047.2,0.05276525]
[1720315483914,1.13623636,3047.4,3047.2,0.05276525]
[1720315484098,1.13623636,3047.3,3047.2,0.05276525]
[1720315484311,2.4423,3047.2,3046.4,3.28251]
[1720315484508,7.75623636,3047.1,3047.0,3.28191]
[1720315484708,6.62,3047.1,3047.0,6.56382]
[1720315484910,6.62,3047.1,3047.0,12.13963]
[1720315485145,0.05695248,3048.1,3048.0,3.28083]
[1720315485320,1.13590563,3048.1,3048.0,3.28083]
[1720315485628,6.62,3048.3,3048.2,3.28062]
[1720315486325,7.75580549,3048.3,3048.2,3.28062]
[1720315486830,8.23271403,3048.3,3047.9,3.2464592]
[1720315487014,7.09688707,3048.3,3047.9,3.2464592]
[1720315487324,7.09688707,3048.3,3048.1,3.28065]
[1720315487825,1.13590819,3048.2,3047.9,3.28086]
[1720315488031,1.13590819,3048.1,3047.9,3.28086]
[1720315488443,1.13590819,3048.1,3047.7,3.28114]
[1720315488607,1.1359612,3048.0,3047.7,3.28114]
[1720315488812,0.88888881,3048.2,3047.7,3.28114]
[1720315489121,1.13596585,3048.1,3047.7,3.28114]
[1720315489309,1.13596585,3048.0,3047.7,3.28114]
[1720315489508,1.13596585,3048.1,3047.7,3.28114]
[1720315489704,1.13598253,3048.0,3047.7,3.28114]
[1720315489903,0.88888881,3048.2,3047.7,3.28114]
[1720315490107,1.13597482,3048.1,3047.7,3.28114]
[1720315490306,0.88888881,3048.2,3047.7,3.28114]
[1720315490496,0.88888881,3048.2,3047.5,3.28135]
[1720315490497,1.1359529,3048.1,3047.8,3.28105]
[1720315490716,0.82327953,3048.2,3047.8,3.28105]
[1720315490917,9.54298707,3048.3,3047.2,3.0]
[1720315490918,1.13592039,3048.1,3047.2,3.0]
[1720315491117,6.62,3048.3,3048.1,3.28066]
[1720315491321,6.62,3048.3,3048.2,0.04926907]
[1720315491515,7.75580249,3048.3,3048.2,0.04926907]
[1720315491898,9.18698993,3048.3,3048.1,3.28066]
[1720315492099,1.13580249,3048.2,3048.1,3.28066]
[1720315493203,7.39558025,3048.3,3048.1,3.28066]
[1720315493399,1.13587633,3048.2,3047.9,3.28088]
[1720315493728,1.98902199,3048.1,3047.9,3.28088]
[1720315493933,1.13587633,3048.0,3047.9,3.28088]
[1720315494146,5.94958561,3048.0,3047.3,3.28158]
[1720315494305,1.36010676,3047.8,3047.4,0.04749817]
[1720315494507,1.52862072,3047.7,3047.4,0.04749817]
[1720315494713,7.75587633,3047.6,3047.2,3.28162]
[1720315495024,6.62,3047.6,3047.4,3.28148]
[1720315495452,6.62,3047.6,3047.4,3.27739078]
[1720315495639,6.62,3047.6,3047.5,0.04438042]
[1720315495955,8.45734408,3047.6,3047.5,0.04438042]
[1720315496467,7.32127444,3047.6,3047.5,0.04438042]
[1720315496759,8.45736079,3047.6,3047.5,0.04438042]
[1720315497555,9.88883574,3047.6,3047.5,0.04438042]
[1720315497716,8.45736079,3047.6,3047.5,0.04438042]
[1720315497917,8.45736079,3047.6,3047.4,3.27739078]
[1720315498155,1.13608635,3047.5,3047.4,3.27739078]
[1720315498758,2.08670615,3047.5,3047.2,3.28162]
[1720315499051,0.88501052,3047.5,3047.2,3.28162]
[1720315499268,1.13611809,3047.4,3047.3,0.04448769]
[1720315499632,0.88501052,3047.5,3047.2,3.28162]
[1720315499851,1.13616654,3047.4,3047.2,3.28162]
[1720315500037,0.88501052,3047.5,3047.3,0.04448769]
[1720315500238,3.38836536,3047.4,3047.3,0.04448769]
[1720315500433,3.38836536,3047.4,3047.2,3.28162]
[1720315500645,1.13616675,3047.3,3047.2,6.56332]
[1720315500839,8.68147706,3047.6,3046.7,3.28217]
[1720315500840,1.13616675,3047.5,3047.4,3.28148]
[1720315501034,6.62,3047.6,3047.5,3.28137]
[1720315501344,9.18755229,3047.6,3047.5,3.28137]
[1720315501543,9.18755229,3047.6,3046.3,5.355]
[1720315501767,3.55194448,3047.5,3047.0,3.28185]
[1720315501940,3.55194448,3047.5,3046.8,3.28202]
[1720315501941,0.98436451,3047.5,3046.8,3.28202]
[1720315502126,3.92876799,3047.4,3046.8,3.28202]
[1720315502325,2.63366557,3047.3,3046.8,3.28202]
[1720315502564,2.63366557,3047.2,3046.8,3.28202]
[1720315502756,1.39967465,3047.1,3046.6,3.28226]
[1720315502943,1.20191737,3047.0,3046.6,3.28226]
[1720315503275,7.75630809,3046.9,3046.4,3.28252]
[1720315503481,1.20191737,3046.8,3046.4,3.28252]
[1720315503624,1.13630809,3046.7,3046.3,3.28267]
[1720315503824,1.13630809,3046.7,3045.9,2.355]
[1720315503825,0.06560928,3046.6,3046.1,3.28287]
[1720315504079,0.06560928,3046.6,3046.2,3.28277]
[1720315504388,0.06560928,3046.8,3046.4,3.28253]
[1720315504529,1.11485138,3046.8,3046.4,3.28254]
[1720315504733,1.0492421,3046.8,3046.5,3.28239]
[1720315504931,6.62,3046.9,3046.4,3.28254]
[1720315505172,6.62,3046.9,3046.6,3.28227]
[1720315506876,6.62,3046.9,3046.8,3.28213]
[1720315508034,6.62,3046.9,3046.8,6.56426]
[1720315509280,6.62,3046.9,3046.8,9.84639]
[1720315509493,7.43,3047.2,3047.1,6.5636]
[1720315509712,9.93,3047.6,3047.5,3.28137]
[1720315510067,12.2685,3047.6,3047.4,3.28148]
[1720315510293,0.06560928,3047.5,3047.4,3.28148]
[1720315510512,1.06517021,3047.5,3047.2,3.28167]
[1720315510677,2.201348,3047.5,3047.3,0.04479904]
[1720315510879,1.06517021,3047.5,3047.3,3.28159]
[1720315511215,9.93,3047.6,3047.5,3.28137]
[1720315511525,9.93,3047.6,3047.5,6.60749217]
[1720315512070,9.93,3047.6,3047.5,0.04475217]
[1720315512305,11.06610353,3047.6,3047.5,0.04475217]
[1720315512687,12.49767715,3047.6,3047.5,0.04475217]
[1720315512907,14.89747123,3047.6,3047.1,3.28177]
[1720315513210,14.89747123,3047.6,3046.7,3.28221]
[1720315513211,2.302,3047.4,3046.7,3.28221]